Workbook

Sheet LFT
A1: I | B1: Calculo FLUXO E PU LFT
D2: LFT
D3: =K39 -> 05/Fev/2020 | E3: =C47 -> 2021-09-01 | F3: =C48 -> 2022-03-01 | G3: =C51 -> 2023-09-01 | I3: Endereço para encontar o VNA da LFT:
D4: Taxa (%) | E4: =F47 -> 0.006 | F4: =F48 -> 0.0081 | G4: =F51 -> 0.0143 | I4: http://www.bcb.gov.br/?SELICLFTLBC
D5: Du | E5: =NETWORKDAYS($D$3,E3,Feriado)-1 -> 394 | F5: =NETWORKDAYS($D$3,F3,Feriado)-1 -> 517 | G5: =NETWORKDAYS($D$3,G3,Feriado)-1 -> 897 | N5: IV | O5: LTN X LFT
D6: Cotação | E6: =100/(1+E4/100)^(E5/252) -> 99.99061977 | F6: =100/(1+F4/100)^(F5/252) -> 99.9833842 | G6: =100/(1+G4/100)^(G5/252) -> 99.9491154
D7: VNA | E7: 10514.92233 | F7: 10514.92233 | G7: 10514.92233 | N7: BMF | O7: SELIC | Q7: LTN
D8: PU | E8: =E6/100*E7 -> 10513.93601 | F8: =F6/100*F7 -> 10513.17519 | G8: =G6/100*G7 -> 10509.57185 | N8: TAXA | Q8: DU | R8: TAXA | S8: BP | T8: LTN PÓS
N9: =VLOOKUP(Q9,$L$65:$N$75,3,FALSE) -> 4.18 | O9: =N9+$E$23/100 -> 4.18 | Q9: =L65 -> 38 | R9: =O65 -> 4.175 | S9: =(R9-N9)*100 -> -0.5 | T9: =((1+R9/100)/(1+O9/100)-1)*100 -> -0.004799385679
N10: 4.155 | O10: 4.155 | Q10: 99 | R10: 4.1494 | S10: -0.56 | T10: -0.005376602179
A11: II | B11: LFT SINTÉTICA | N11: 4.21 | O11: 4.21 | Q11: 164 | R11: 4.1931 | S11: -1.69 | T11: -0.01621725362
D12: BMF | E12: =_xll.SRS1Splines.Functions25.Cubic_Spline($Q$9:$Q$19,$N$9:$N$19,E5) -> 4.71960888 | F12: =_xll.SRS1Splines.Functions25.Cubic_Spline($Q$9:$Q$19,$N$9:$N$19,F5) -> 5.015742782 | G12: =_xll.SRS1Splines.Functions25.Cubic_Spline($Q$9:$Q$19,$N$9:$N$19,G5) -> 5.723469583 | N12: 4.45 | O12: 4.45 | Q12: 288 | R12: 4.4319 | S12: -1.81 | T12: -0.01732886549
N13: 4.61 | O13: 4.61 | Q13: 350 | R13: 4.5833 | S13: -2.67 | T13: -0.02552337253
D14: LFT pre | E14: =(((1+(E12+E23/100))^(E5/252)*(100/E6))^(252/E5)-1) -> 4.719952056 | F14: =(((1+(F12+E23/100))^(F5/252)*(100/F6))^(252/F5)-1) -> 5.016230057 | G14: =(((1+(G12+E23/100))^(G5/252)*(100/G6))^(252/G5)-1) -> 5.724431039 | N14: 4.77 | O14: 4.77 | Q14: 415 | R14: 4.75 | S14: -2 | T14: -0.019089434
N15: 4.92 | O15: 4.92 | Q15: 478 | R15: 4.9088 | S15: -1.12 | T15: -0.01067479985
D16: premio(BP) | E16: =(E14-E12)*100 -> 0.03431765328 | F16: =(F14-F12)*100 -> 0.04872751654 | G16: =(G14-G12)*100 -> 0.09614561503 | N16: 5.07 | O16: 5.07 | Q16: 540 | R16: 5.0709 | S16: 0.09 | T16: 0.0008565718093
N17: 5.2 | O17: 5.2 | Q17: 602 | R17: 5.205 | S17: 0.5 | T17: 0.004752851711
D18: LTN | E18: =_xll.SRS1Splines.Functions25.Cubic_Spline($Q$9:$Q$19,$R$9:$R$19,E5) -> 4.696374992 | F18: =_xll.SRS1Splines.Functions25.Cubic_Spline($Q$9:$Q$19,$R$9:$R$19,F5) -> 5.012513906 | G18: =_xll.SRS1Splines.Functions25.Cubic_Spline($Q$9:$Q$19,$R$9:$R$19,G5) -> 5.741894687 | N18: 5.66 | O18: 5.66 | Q18: 853 | R18: 5.6738 | S18: 1.38 | T18: 0.01306076093
D19: premio(BP) | E19: =(E18-E12)*100 -> -2.323388776 | F19: =(F18-F12)*100 -> -0.3228876377 | G19: =(G18-G12)*100 -> 1.842510373 | N19: 5.83 | O19: 5.83 | Q19: 978 | R19: 5.8591 | S19: 2.91 | T19: 0.02749692904
A22: III | B22: CARREGAMENTO
D23: Selic-CDI | E23: 0
D24: Lote | E24: 10000
D25: Cdi medio | E25: =E12 -> 4.71960888
D26: Selic medio | E26: =E25+E23 -> 4.71960888
D27: VNA resg | E27: =(1+E26/100)^(E5/252)*E7 -> 11301.07367
D28: Fin | E28: =E27*E24 -> 113010736.7
D29: Carreg. | E29: =(1+E26/100)^(E5/252)*E8*E24 -> 113000136
D30: Res Liq. | E30: =E28-E29 -> 10600.66815
A39: Títulos Públicos Federais | K39: 05/Fev/2020
A41: Papel POS-SELIC | C41: LFT - Rentabilidade (% a.a.)/252
A42: Código SELIC | B42: Data Base/Emissão | C42: Data de Vencimento | D42: Tx. Compra | E42: DU | F42: Tx. Indicativas | G42: PU | H42: Intervalo Indicativo
H43: Mínimo (D0) | I43: Máximo (D0) | J43: Mínimo (D+1) | K43: Máximo (D+1)
A44: 210100 | B44: 2000-07-01 | C44: 2020-03-01 | D44: -- | E44: =NETWORKDAYS($D$3,C44,Feriado)-1 -> 15 | F44: 0.0029 | G44: 10514.90338 | H44: 0.0008 | I44: 0.0053 | J44: 0.001 | K44: 0.0057
A45: 210100 | B45: 2000-07-01 | C45: 2020-09-01 | D45: -- | E45: 143 | F45: 0.0029 | G45: 10514.74566 | H45: 0.0011 | I45: 0.0046 | J45: 0.0013 | K45: 0.0046
A46: 210100 | B46: 2000-07-01 | C46: 2021-03-01 | D46: -- | E46: 265 | F46: 0.0054 | G46: 10514.32506 | H46: 0.0011 | I46: 0.0073 | J46: 0.0012 | K46: 0.0071
A47: 210100 | B47: 2000-07-01 | C47: 2021-09-01 | D47: -- | E47: 394 | F47: 0.006 | G47: 10513.93601 | H47: 0.0044 | I47: 0.0083 | J47: 0.0044 | K47: 0.0083
A48: 210100 | B48: 2000-07-01 | C48: 2022-03-01 | D48: -- | E48: 517 | F48: 0.0081 | G48: 10513.16842 | H48: 0.0066 | I48: 0.0108 | J48: 0.0066 | K48: 0.0108
A49: 210100 | B49: 2000-07-01 | C49: 2022-09-01 | D49: -- | E49: 646 | F49: 0.0114 | G49: 10511.84354 | H49: 0.0093 | I49: 0.013 | J49: 0.0093 | K49: 0.013
A50: 210100 | B50: 2000-07-01 | C50: 2023-03-01 | D50: -- | E50: 769 | F50: 0.0126 | G50: 10510.87616 | H50: 0.0107 | I50: 0.016 | J50: 0.0107 | K50: 0.016
A51: 210100 | B51: 2000-07-01 | C51: 2023-09-01 | D51: -- | E51: 897 | F51: 0.0143 | G51: 10509.57231 | H51: 0.0124 | I51: 0.018 | J51: 0.0124 | K51: 0.018
A52: 210100 | B52: 2000-07-01 | C52: 2024-03-01 | D52: -- | E52: 1019 | F52: 0.0176 | G52: 10507.43778 | H52: 0.0134 | I52: 0.0198 | J52: 0.0135 | K52: 0.0197
A53: 210100 | B53: 2000-07-01 | C53: 2024-09-01 | D53: -- | E53: 1146 | F53: 0.0179 | G53: 10506.35475 | H53: 0.0153 | I53: 0.02 | J53: 0.0152 | K53: 0.0201
A54: 210100 | B54: 2000-07-01 | C54: 2025-03-01 | D54: -- | E54: 1273 | F54: 0.0184 | G54: 10505.14553 | H54: 0.0157 | I54: 0.021 | J54: 0.0157 | K54: 0.021
A55: 210100 | B55: 2000-07-01 | C55: 2025-09-01 | D55: -- | E55: 1398 | F55: 0.0183 | G55: 10504.25176 | H55: 0.0161 | I55: 0.0212 | J55: 0.0161 | K55: 0.0212
A56: 210100 | B56: 2000-07-01 | C56: 2026-03-01 | D56: -- | E56: 1523 | F56: 0.0177 | G56: 10503.67344 | H56: 0.0153 | I56: 0.0221 | J56: 0.015 | K56: 0.0223
A59: Títulos Públicos Federais | K59: 05/Fev/2020
A62: Papel PREFIXADO | C62: LTN - Taxa (% a.a.)/252 | L62: BM&F
A63: Código SELIC | B63: Data Base/Emissão | C63: Data de Vencimento | D63: Tx. Compra | E63: Tx. Venda | F63: Tx. Indicativas | G63: PU | H63: Intervalo Indicativo
H64: Mínimo (D0) | I64: Máximo (D0) | J64: Mínimo (D+1) | K64: Máximo (D+1) | L64: DU | M64: DC | N64: BMF | O64: LTN | P64: SPREAD
A65: 100000 | B65: 2018-01-05 | C65: 2020-04-01 | D65: 4.1806 | E65: 4.1685 | F65: 4.175 | G65: 993.85122 | H65: 4.0909 | I65: 4.282 | J65: 4.0772 | K65: 4.2683 | L65: =NETWORKDAYS($K$59,C65,Feriado)-1 -> 38 | M65: =C65-$K$59 -> 56 | N65: =VLOOKUP(L65,BMF!B5:C27,2,FALSE) -> 4.18 | O65: =F65 -> 4.175 | P65: =O65-N65 -> -0.005
A66: 100000 | B66: 2016-07-08 | C66: 2020-07-01 | D66: 4.1545 | E66: 4.1432 | F66: 4.1494 | G66: 984.15479 | H66: 4.0393 | I66: 4.2863 | J66: 4.0308 | K66: 4.2759 | L66: 99 | M66: 147 | N66: =VLOOKUP(L66,BMF!B6:C28,2,FALSE) -> 4.155 | O66: 4.1494 | P66: -0.0056
A67: 100000 | B67: 2018-07-06 | C67: 2020-10-01 | D67: 4.1975 | E67: 4.1875 | F67: 4.1931 | G67: 973.622313 | H67: 4.0285 | I67: 4.4168 | J67: 4.0176 | K67: 4.4039 | L67: 164 | M67: 239 | N67: =VLOOKUP(L67,BMF!B7:C29,2,FALSE) -> 4.21 | O67: 4.1931 | P67: -0.0169
A68: 100000 | B68: 2019-01-04 | C68: 2021-04-01 | D68: 4.4367 | E68: 4.4246 | F68: 4.4319 | G68: 951.648059 | H68: 4.1742 | I68: 4.7319 | J68: 4.174 | K68: 4.7307 | L68: 288 | M68: 421 | N68: =VLOOKUP(L68,BMF!B8:C30,2,FALSE) -> 4.45 | O68: 4.4319 | P68: -0.0181
A69: 100000 | B69: 2017-07-07 | C69: 2021-07-01 | D69: 4.5881 | E69: 4.5771 | F69: 4.5833 | G69: 939.656171 | H69: 4.3058 | I69: 4.9173 | J69: 4.2947 | K69: 4.9054 | L69: 350 | M69: 512 | N69: =VLOOKUP(L69,BMF!B9:C31,2,FALSE) -> 4.61 | O69: 4.5833 | P69: -0.0267
A70: 100000 | B70: 2019-07-05 | C70: 2021-10-01 | D70: 4.7565 | E70: 4.7456 | F70: 4.75 | G70: 926.424067 | H70: 4.4565 | I70: 5.1084 | J70: 4.4369 | K70: 5.0882 | L70: 415 | M70: 604 | N70: =VLOOKUP(L70,BMF!B10:C32,2,FALSE) -> 4.77 | O70: 4.75 | P70: -0.02
A71: 100000 | B71: 2018-01-05 | C71: 2022-01-01 | D71: 4.9145 | E71: 4.9042 | F71: 4.9088 | G71: 913.11068 | H71: 4.5988 | I71: 5.2784 | J71: 4.5778 | K71: 5.2571 | L71: =NETWORKDAYS($K$59,C71,Feriado) -> 478 | M71: 696 | N71: =VLOOKUP(L71,BMF!B11:C33,2,FALSE) -> 4.92 | O71: 4.9088 | P71: -0.0112
A72: 100000 | B72: 2020-01-03 | C72: 2022-04-01 | D72: 5.0764 | E72: 5.0672 | F72: 5.0709 | G72: 899.427524 | H72: 4.7458 | I72: 5.4448 | J72: 4.7269 | K72: 5.4257 | L72: =NETWORKDAYS($K$59,C72,Feriado)-1 -> 540 | M72: 786 | N72: =VLOOKUP(L72,BMF!B12:C34,2,FALSE) -> 5.07 | O72: 5.0709 | P72: 0.0009
A73: 100000 | B73: 2018-06-21 | C73: 2022-07-01 | D73: 5.2112 | E73: 5.1994 | F73: 5.205 | G73: 885.844585 | H73: 4.8723 | I73: 5.5802 | J73: 4.8516 | K73: 5.5594 | L73: =NETWORKDAYS($K$59,C73,Feriado)-1 -> 602 | M73: 877 | N73: =VLOOKUP(L73,BMF!B13:C35,2,FALSE) -> 5.2 | O73: 5.205 | P73: 0.005
A74: 100000 | B74: 2019-04-05 | C74: 2023-07-01 | D74: 5.6797 | E74: 5.6687 | F74: 5.6738 | G74: 829.60719 | H74: 5.3459 | I74: 6.0473 | J74: 5.3054 | K74: 6.007 | L74: =NETWORKDAYS($K$59,C74,Feriado) -> 853 | M74: 1242 | N74: =VLOOKUP(L74,BMF!B14:C36,2,FALSE) -> 5.66 | O74: 5.6738 | P74: 0.0138
A75: 100000 | B75: 2020-01-03 | C75: 2024-01-01 | D75: 5.864 | E75: 5.8541 | F75: 5.8591 | G75: 801.735369 | H75: 5.5314 | I75: 6.2449 | J75: 5.4914 | K75: 6.2048 | L75: =NETWORKDAYS($K$59,C75,Feriado) -> 978 | M75: 1426 | N75: =VLOOKUP(L75,BMF!B15:C37,2,FALSE) -> 5.83 | O75: 5.8591 | P75: 0.0291

Sheet BALANCEAMENTO
H2: Simulação | I2: 0
B3: BM&F
F4: Ativo Renda Fixa | L4: Balanceamento dinâmico
A5: DU-1 | B5: DU | C5: BMF | D5: pu
A6: 0 | B6: =BMF!M5 -> 16 | C6: =BMF!C5 -> 4.2 | D6: =100000/(1+C6/100)^(B6/252) -> 99739.12219 | I6: VN | N6: PU | O6: DU
A7: =B6 -> 16 | B7: =BMF!M6 -> 38 | C7: =BMF!C6 -> 4.18 | D7: =100000/(1+C7/100)^(B7/252) -> 99384.40282 | I7: 1000 | L7: Contrato longo | N7: =VLOOKUP(O7,B6:D26,3) -> 87180.16956 | O7: =VLOOKUP(I13,A6:C26,2) -> 667
A8: =B7 -> 38 | B8: =BMF!M7 -> 58 | C8: =BMF!C7 -> 4.15 | D8: 99068.49464 | F8: BM&F | G8: =_xll.SRS1Splines.Functions25.Cubic_Spline(B6:B26,C6:C26,I13) -> 5.287687141
A9: 58 | B9: =BMF!M8 -> 78 | C9: =BMF!C8 -> 4.16 | D9: 98746.36736 | F9: Prêmio | G9: 12 | L9: Quantidade = Fin/PU * (DU ATIVO/DU FUTURO)
A10: 78 | B10: =BMF!M9 -> 99 | C10: =BMF!C9 -> 4.155 | D10: 98413.40026 | F10: Taxa | G10: =G8+G9/100 -> 5.407687141 | H10: %a.a.
A11: 99 | B11: =BMF!M10 -> 122 | C11: =BMF!C10 -> 4.155 | D11: 98048.4145 | L11: Qtde | M11: =G19/N7*I13/O7 -> 97.58292738
A12: 122 | B12: =BMF!M11 -> 143 | C12: =BMF!C11 -> 4.15 | D12: 97719.01094 | I12: Prazo
A13: 143 | B13: =BMF!M12 -> 164 | C13: =BMF!C12 -> 4.21 | D13: 97351.95534 | I13: =650-I2 -> 650
A14: 164 | B14: =BMF!M13 -> 185 | C14: =BMF!C13 -> 4.22 | D14: 97011.14623 | L14: Balanceamento estático
A15: 185 | B15: =BMF!M14 -> 205 | C15: =BMF!C14 -> 4.25 | D15: 96670.78955 | F15: PU = | G15: =ROUND(I7/(1+G10/100)^(I13/252),6) -> 872.979467
A16: 205 | B16: =BMF!M15 -> 227 | C16: =BMF!C15 -> 4.32 | D16: 96261.93825 | L16: PU int. | M16: =_xll.SRS1Splines.Functions25.Cubic_Spline(B6:B26,D6:D26,I13) -> 87555.29483 | N16: Qdte teorica | O16: =G19/M16 -> 99.70607359
A17: 227 | B17: =BMF!M16 -> 288 | C17: =BMF!C16 -> 4.45 | D17: 95145.95933 | F17: Estoque | G17: 10000
A18: 288 | B18: =BMF!M17 -> 350 | C18: =BMF!C17 -> 4.61 | D18: 93932.30878 | N18: =VLOOKUP(I13,A6:C26,1) -> 602
A19: 350 | B19: =BMF!M18 -> 415 | C19: =BMF!C18 -> 4.77 | D19: 92613.28455 | F19: Fin | G19: =G15*G17 -> 8729794.67 | L19: DI curto | M19: =VLOOKUP(N18,B6:D26,3) -> 88594.51679
A20: 415 | B20: =BMF!M19 -> 478 | C20: =BMF!C19 -> 4.92 | D20: 91292.58008 | O20: =VLOOKUP(I13,A6:C26,2) -> 667
A21: 478 | B21: =BMF!M20 -> 540 | C21: =BMF!C20 -> 5.07 | D21: 89944.40334 | L21: DI longo | M21: =VLOOKUP(O20,B6:D26,3) -> 87180.16956
A22: 540 | B22: =BMF!M21 -> 602 | C22: =BMF!C21 -> 5.2 | D22: 88594.51679 | N22: =N26-N18 -> 48 | O22: =O20-N26 -> 17
A23: 602 | B23: =BMF!M22 -> 667 | C23: =BMF!C22 -> 5.32 | D23: 87180.16956
A24: 667 | B24: =BMF!M23 -> 729 | C24: =BMF!C23 -> 5.44 | D24: 85792.37137
A25: 729 | B25: =BMF!M24 -> 792 | C25: =BMF!C24 -> 5.53 | D25: 84436.9944
A26: 792 | B26: =BMF!M25 -> 853 | C26: =BMF!C25 -> 5.66 | D26: 82997.40142 | L26: Ativo | N26: =I13 -> 650
M28: Qtde curta = Qtde teorica * ( du longo / dif du) * (PU curto / PU longo) ^ ( du curto / dif du )
M29: Qtde longa = Qtde teorica * ( du curto / dif du) * (PU longo / PU curto) ^ ( du longo / dif du )
L31: Qtde curta | M31: =O16*(O22/(N22+O22))*(M19/M21)^(N22/(N22+O22)) -> 26.38872369
L32: Qdte longa | M32: =O16-M31 -> 73.3173499

Sheet NTN-F
A1: Etapas para estrutura de Hedge com NTN-F | E1: NTN-F
A2: 1 | B2: Precificação
A3: 2 | B3: Cálculo da Duration | E3: LIQUIDAÇÃO | F3: =BMF!L1 -> 2020-02-05
A4: 3 | B4: Zero Cupom equivalente | E4: JUROS | F4: 10
A5: 4 | B5: Balanceamento estático | E5: CUPOM DE JUROS | F5: =ROUND((1+F4/100)^(1/2)-1,8)*100 -> 4.880885
A6: 5 | B6: Balanceamento dinâmico | E6: VALOR NOMINAL | F6: 1000
E7: PRÊMIO | F7: =F9-F8 -> -0.033
E8: BM$F | F8: =VLOOKUP(F10,C92:P97,12,FALSE) -> 5.44
E9: TAXA anbima | F9: =VLOOKUP(F10,C92:F97,4,FALSE) -> 5.407
E10: VENCIMENTO | F10: 2023-01-01
A12: I | B12: Calculo FLUXO E PU NTN-F | K12: II | L12: CÁLCULO DA DURATION
A13: FLUXO
A14: DT VENC. | B14: DT. LIQ. | C14: DU | D14: VR. FUTURO | E14: VR. PRESENTE | F14: CV EQUIVALENTE | G14: CURVA | H14: BMF | K14: VP * Prazo
A15: 2020-07-01 | B15: 2020-07-01 | C15: =IF(D15=0,0,NETWORKDAYS($F$3,B15,Feriado)-1) -> 99 | D15: =IF(A15=$F$10,1048.80885,IF(AND(A15<$F$10,A15>$F$3),48.80885,0)) -> 48.80885 | E15: =D15/(1+$F$9/100)^(C15/252) -> 47.809494 | F15: =D15/(1+$F$25/100)^(C15/252) -> 47.81541512 | G15: =IF(ISNA(H15),0,D15/(1+H15/100)^(C15/252)) -> 48.03444891 | H15: =VLOOKUP(C15,BMF!$B$5:$C$27,2,FALSE) -> 4.155 | K15: =E15*C15 -> 4733.139906
A16: 2021-01-01 | B16: 2021-01-04 | C16: 227 | D16: 48.80885 | E16: =D16/(1+$F$9/100)^(C16/252) -> 46.54766683 | F16: 46.56088627 | G16: 46.98434505 | H16: =VLOOKUP(C16,BMF!$B$5:$C$27,2,FALSE) -> 4.32 | K16: 10566.32037
A17: 2021-07-01 | B17: 2021-07-01 | C17: 350 | D17: 48.80885 | E17: 45.36651787 | F17: 45.38638459 | G17: 45.8472797 | H17: =VLOOKUP(C17,BMF!$B$5:$C$27,2,FALSE) -> 4.61 | K17: 15878.28125
A18: 2022-01-01 | B18: 2022-01-03 | C18: 478 | D18: 48.80885 | E18: 44.16916772 | F18: 44.195586 | G18: 44.55885847 | H18: =VLOOKUP(C18,BMF!$B$5:$C$27,2,FALSE) -> 4.92 | K18: 21112.86217
A19: 2022-07-01 | B19: 2022-07-01 | C19: 602 | D19: 48.80885 | E19: 43.03937867 | F19: 43.0718017 | G19: 43.24196481 | H19: =VLOOKUP(C19,BMF!$B$5:$C$27,2,FALSE) -> 5.2 | K19: 25909.70596
A20: 2023-01-01 | B20: 2023-01-02 | C20: 729 | D20: 1048.80885 | E20: 900.6131479 | F20: 901.4348065 | G20: 899.7979836 | H20: =VLOOKUP(C20,BMF!$B$5:$C$27,2,FALSE) -> 5.44 | K20: 656546.9848
K21: 0
K22: 0
D24: PU | E24: =SUM(E15:E20) -> 1127.545373 | F24: =SUM(F15:F22) -> 1128.46488 | G24: =SUM(G15:G22) -> 1128.46488 | K24: =SUM(K15:K20) -> 734747.2945
E25: Taxa (BMF) | F25: 5.373777745 | G25: Atingir meta = 0 | H25: =G24-F24 -> 3.240982096e-07
E26: Prêmio | F26: =(F9-F25)*100 -> 3.322225518 | J26: Duration | K26: =K24/E24 -> 651.6343485
A30: III
A31: Zero Cupom | D31: =B39*(1+B34/200)^(K26/252) -> 1206.515959
A34: Taxa | B34: =cubic_Spline(L105:L115,O105:O115,D37) -> 5.304842057
D36: Prazo
D37: =K26 -> 651.6343485
A39: PU = | B39: =E24 -> 1127.545373
A41: Estoque | B41: 10000
A43: Fin | B43: =B39*B41 -> 11275453.73
A46: IIII
A47: Balanceamento dinâmico
C49: PU | D49: DU
A50: Contrato longo | C50: =VLOOKUP(D50,BALANCEAMENTO!B6:D26,3,FALSE) -> 87180.16956 | D50: =VLOOKUP(D37,BALANCEAMENTO!A5:D26,2) -> 667
A52: Quantidade = Fin/PU * (DU ATIVO/DU FUTURO)
A54: Qtde | B54: =B43/C50*D37/D50 -> 126.3555878
A58: IIIII
A59: Balanceamento estático
A61: PU int. | B61: =100000/(1+_xll.SRS1Splines.Functions25.Cubic_Spline(BALANCEAMENTO!B6:B26,BALANCEAMENTO!C6:C26,'NTN-F'!D37)/100)^(D37/252) -> 87519.04897 | C61: Qdte teorica | D61: =B43/B61 -> 128.8342808
C63: =VLOOKUP(D37,BALANCEAMENTO!A6:D26,1) -> 602
A64: DI curto | B64: =VLOOKUP(C63,BALANCEAMENTO!B6:D26,3) -> 88594.51679
D65: =VLOOKUP(D37,BALANCEAMENTO!A6:D26,2) -> 667
A66: DI longo | B66: =VLOOKUP(D65,BALANCEAMENTO!B6:D26,3) -> 87180.16956
C67: =C71-C63 -> 49.63434845 | D67: =D65-C71 -> 15.36565155
A71: Ativo | C71: =D37 -> 651.6343485
B73: Qtde curta = Qtde teorica * ( du longo / dif du) * (PU curto / PU longo) ^ ( du curto / dif du )
B74: Qtde longa = Qtde teorica * ( du curto / dif du) * (PU longo / PU curto) ^ ( du longo / dif du )
A76: Qtde curta | B76: =D61*(D67/(C67+D67))*(B64/B66)^(C67/(C67+D67)) -> 30.83230558
A77: Qdte longa | B77: =D61-B76 -> 98.00197522
A87: Títulos Públicos Federais | K87: 05/Fev/2020
A89: Papel PREFIXADO | C89: NTN-F - Taxa (% a.a.)/252 | L89: BM&F
A90: Código SELIC | B90: Data Base/Emissão | C90: Data de Vencimento | D90: Tx. Compra | E90: Tx. Venda | F90: Tx. Indicativas | G90: PU | H90: Intervalo Indicativo
H91: Mínimo (D0) | I91: Máximo (D0) | J91: Mínimo (D+1) | K91: Máximo (D+1) | L91: DU | M91: DC | N91: BMF | O91: LTN | P91: SPREAD
A92: 950199 | B92: 2010-02-05 | C92: 2021-01-01 | D92: 4.2992 | E92: 4.2872 | F92: 4.2933 | G92: 1057.845965 | H92: 4.0828 | I92: 4.5634 | J92: 4.0755 | K92: 4.5548 | L92: =NETWORKDAYS($K$100,C92,Feriado) -> 227 | M92: =C92-$K$100 -> 331 | N92: =VLOOKUP(L92,BMF!$B$5:$C$27,2,FALSE) -> 4.32 | O92: =F92 -> 4.2933 | P92: =O92-N92 -> -0.0267
A93: 950199 | B93: 2012-03-09 | C93: 2023-01-01 | D93: 5.414 | E93: 5.4 | F93: 5.407 | G93: 1127.545372 | H93: 5.0777 | I93: 5.7784 | J93: 5.0497 | K93: 5.7505 | L93: =NETWORKDAYS($K$100,C93,Feriado) -> 729 | M93: =C93-$K$100 -> 1061 | N93: =VLOOKUP(L93,BMF!$B$5:$C$27,2,FALSE) -> 5.44 | O93: =F93 -> 5.407 | P93: =O93-N93 -> -0.033
A94: 950199 | B94: 2014-01-10 | C94: 2025-01-01 | D94: 5.9922 | E94: 5.9794 | F94: 5.9869 | G94: 1172.676384 | H94: 5.6949 | I94: 6.4098 | J94: 5.6318 | K94: 6.3468
A95: 950199 | B95: 2016-01-15 | C95: 2027-01-01 | D95: 6.2933 | E95: 6.2795 | F95: 6.2851 | G95: 1208.839857 | H95: 6.0296 | I95: 6.7312 | J95: 5.9479 | K95: 6.6498
A96: 950199 | B96: 2018-01-05 | C96: 2029-01-01 | D96: 6.4838 | E96: 6.471 | F96: 6.4778 | G96: 1238.631435 | H96: 6.2441 | I96: 6.9527 | J96: 6.1336 | K96: 6.8427
A97: 950199 | B97: 2020-01-10 | C97: 2031-01-01 | D97: 6.643 | E97: 6.6249 | F97: 6.6333 | G97: 1261.176846 | H97: 6.4 | I97: 7.1172 | J97: 6.2798 | K97: 6.9979
A100: Títulos Públicos Federais | K100: 05/Fev/2020
A102: Papel PREFIXADO | C102: LTN - Taxa (% a.a.)/252 | L102: BM&F
A103: Código SELIC | B103: Data Base/Emissão | C103: Data de Vencimento | D103: Tx. Compra | E103: Tx. Venda | F103: Tx. Indicativas | G103: PU | H103: Intervalo Indicativo
H104: Mínimo (D0) | I104: Máximo (D0) | J104: Mínimo (D+1) | K104: Máximo (D+1) | L104: DU | M104: DC | N104: BMF | O104: LTN | P104: SPREAD
A105: 100000 | B105: 2018-01-05 | C105: 2020-04-01 | D105: 4.1806 | E105: 4.1685 | F105: 4.175 | G105: 993.85122 | H105: 4.0909 | I105: 4.282 | J105: 4.0772 | K105: 4.2683 | L105: =NETWORKDAYS($K$100,C105,Feriado)-1 -> 38 | M105: =C105-$K$100 -> 56 | N105: =VLOOKUP(L105,BMF!$B$5:$C$27,2,FALSE) -> 4.18 | O105: =F105 -> 4.175 | P105: =O105-N105 -> -0.005
A106: 100000 | B106: 2016-07-08 | C106: 2020-07-01 | D106: 4.1545 | E106: 4.1432 | F106: 4.1494 | G106: 984.15479 | H106: 4.0393 | I106: 4.2863 | J106: 4.0308 | K106: 4.2759 | L106: 99 | M106: =C106-$K$100 -> 147 | N106: =VLOOKUP(L106,BMF!$B$5:$C$27,2,FALSE) -> 4.155 | O106: 4.1494 | P106: -0.0056
A107: 100000 | B107: 2018-07-06 | C107: 2020-10-01 | D107: 4.1975 | E107: 4.1875 | F107: 4.1931 | G107: 973.622313 | H107: 4.0285 | I107: 4.4168 | J107: 4.0176 | K107: 4.4039 | L107: 164 | M107: 239 | N107: =VLOOKUP(L107,BMF!$B$5:$C$27,2,FALSE) -> 4.21 | O107: 4.1931 | P107: -0.0169
A108: 100000 | B108: 2019-01-04 | C108: 2021-04-01 | D108: 4.4367 | E108: 4.4246 | F108: 4.4319 | G108: 951.648059 | H108: 4.1742 | I108: 4.7319 | J108: 4.174 | K108: 4.7307 | L108: 288 | M108: 421 | N108: =VLOOKUP(L108,BMF!$B$5:$C$27,2,FALSE) -> 4.45 | O108: 4.4319 | P108: -0.0181
A109: 100000 | B109: 2017-07-07 | C109: 2021-07-01 | D109: 4.5881 | E109: 4.5771 | F109: 4.5833 | G109: 939.656171 | H109: 4.3058 | I109: 4.9173 | J109: 4.2947 | K109: 4.9054 | L109: 350 | M109: 512 | N109: =VLOOKUP(L109,BMF!$B$5:$C$27,2,FALSE) -> 4.61 | O109: 4.5833 | P109: -0.0267
A110: 100000 | B110: 2019-07-05 | C110: 2021-10-01 | D110: 4.7565 | E110: 4.7456 | F110: 4.75 | G110: 926.424067 | H110: 4.4565 | I110: 5.1084 | J110: 4.4369 | K110: 5.0882 | L110: 415 | M110: 604 | N110: =VLOOKUP(L110,BMF!$B$5:$C$27,2,FALSE) -> 4.77 | O110: 4.75 | P110: -0.02
A111: 100000 | B111: 2018-01-05 | C111: 2022-01-01 | D111: 4.9145 | E111: 4.9042 | F111: 4.9088 | G111: 913.11068 | H111: 4.5988 | I111: 5.2784 | J111: 4.5778 | K111: 5.2571 | L111: =NETWORKDAYS($K$100,C111,Feriado) -> 478 | M111: 696 | N111: =VLOOKUP(L111,BMF!$B$5:$C$27,2,FALSE) -> 4.92 | O111: 4.9088 | P111: -0.0112
A112: 100000 | B112: 2020-01-03 | C112: 2022-04-01 | D112: 5.0764 | E112: 5.0672 | F112: 5.0709 | G112: 899.427524 | H112: 4.7458 | I112: 5.4448 | J112: 4.7269 | K112: 5.4257 | L112: =NETWORKDAYS($K$100,C112,Feriado)-1 -> 540 | M112: 786 | N112: =VLOOKUP(L112,BMF!$B$5:$C$27,2,FALSE) -> 5.07 | O112: 5.0709 | P112: 0.0009
A113: 100000 | B113: 2018-06-21 | C113: 2022-07-01 | D113: 5.2112 | E113: 5.1994 | F113: 5.205 | G113: 885.844585 | H113: 4.8723 | I113: 5.5802 | J113: 4.8516 | K113: 5.5594 | L113: =NETWORKDAYS($K$100,C113,Feriado)-1 -> 602 | M113: 877 | N113: =VLOOKUP(L113,BMF!$B$5:$C$27,2,FALSE) -> 5.2 | O113: 5.205 | P113: 0.005
A114: 100000 | B114: 2019-04-05 | C114: 2023-07-01 | D114: 5.6797 | E114: 5.6687 | F114: 5.6738 | G114: 829.60719 | H114: 5.3459 | I114: 6.0473 | J114: 5.3054 | K114: 6.007 | L114: =NETWORKDAYS($K$100,C114,Feriado) -> 853 | M114: 1242 | N114: =VLOOKUP(L114,BMF!$B$5:$C$27,2,FALSE) -> 5.66 | O114: 5.6738 | P114: 0.0138
A115: 100000 | B115: 2020-01-03 | C115: 2024-01-01 | D115: 5.864 | E115: 5.8541 | F115: 5.8591 | G115: 801.735369 | H115: 5.5314 | I115: 6.2449 | J115: 5.4914 | K115: 6.2048 | L115: =NETWORKDAYS($K$100,C115,Feriado) -> 978 | M115: 1426 | N115: =VLOOKUP(L115,BMF!$B$5:$C$27,2,FALSE) -> 5.83 | O115: 5.8591 | P115: 0.0291

Sheet Ex2_F
B1: Calculo FLUXO E PU NTN-F
B2: NTN-F | E2: FLUXO
E3: DT. LIQ. | F3: DU | G3: VR. FUTURO | H3: VR. PRESENTE | I3: Financeiro | J3: FIN * DU | K3: vp * ( t2 + t)
B4: LIQUIDAÇÃO | C4: ='NTN-F'!F3 -> 2020-02-05 | E4: ='NTN-F'!B15 -> 2020-07-01 | F4: ='NTN-F'!C15 -> 99 | G4: ='NTN-F'!D15 -> 48.80885 | H4: ='NTN-F'!E15 -> 47.809494 | I4: =H4*$C$12 -> 956189.88 | J4: =I4*F4 -> 94662798.12 | K4: =((F4/252)^2+F4/252)*H4 -> 26.1610624
B5: JUROS | C5: ='NTN-F'!F4 -> 10 | E5: ='NTN-F'!B16 -> 2021-01-04 | F5: ='NTN-F'!C16 -> 227 | G5: ='NTN-F'!D16 -> 48.80885 | H5: ='NTN-F'!E16 -> 46.54766683 | I5: =H5*$C$12 -> 930953.3366 | J5: =I5*F5 -> 211326407.4 | K5: =((F5/252)^2+F5/252)*H5 -> 79.69997886
B6: CUPOM DE JUROS | C6: ='NTN-F'!F5 -> 4.880885 | E6: ='NTN-F'!B17 -> 2021-07-01 | F6: ='NTN-F'!C17 -> 350 | G6: ='NTN-F'!D17 -> 48.80885 | H6: ='NTN-F'!E17 -> 45.36651787 | I6: 907330.3574 | J6: 317565625.1 | K6: 150.5216257
B7: VALOR NOMINAL | C7: ='NTN-F'!F6 -> 1000 | E7: ='NTN-F'!B18 -> 2022-01-03 | F7: ='NTN-F'!C18 -> 478 | G7: ='NTN-F'!D18 -> 48.80885 | H7: ='NTN-F'!E18 -> 44.16916772 | I7: 883383.3545 | J7: 422257243.4 | K7: 242.6995053
B8: PRÊMIO | C8: ='NTN-F'!F7 -> -0.033 | E8: ='NTN-F'!B19 -> 2022-07-01 | F8: ='NTN-F'!C19 -> 602 | G8: ='NTN-F'!D19 -> 48.80885 | H8: ='NTN-F'!E19 -> 43.03937867 | I8: 860787.5733 | J8: 518194119.1 | K8: 348.4329946
B9: BM$F | C9: ='NTN-F'!F8 -> 5.44 | E9: ='NTN-F'!B20 -> 2023-01-02 | F9: ='NTN-F'!C20 -> 729 | G9: ='NTN-F'!D20 -> 1048.80885 | H9: ='NTN-F'!E20 -> 900.6131479 | I9: 18012262.96 | J9: 1.31309397e+10 | K9: 10142.23658
B10: TAXA anbima | C10: ='NTN-F'!F9 -> 5.407 | E10: ='NTN-F'!B21 -> 00:00:00 | F10: ='NTN-F'!C21 -> 0 | G10: ='NTN-F'!D21 -> 0 | H10: ='NTN-F'!E21 -> 0 | I10: 0 | J10: 0 | K10: 0
B11: VENCIMENTO | C11: ='NTN-F'!F10 -> 2023-01-01 | E11: ='NTN-F'!B22 -> 00:00:00 | F11: ='NTN-F'!C22 -> 0 | G11: ='NTN-F'!D22 -> 0 | H11: ='NTN-F'!E22 -> 0 | I11: 0 | J11: 0 | K11: 0
B12: Carteira | C12: 20000 | E12: ='NTN-F'!B23 -> 00:00:00 | F12: ='NTN-F'!C23 -> 0 | G12: ='NTN-F'!D23 -> 0 | H12: ='NTN-F'!E23 -> 0 | I12: 0 | J12: 0 | K12: 0
G13: PU | H13: =SUM(H4:H12) -> 1127.545373 | I13: =SUM(I4:I12) -> 22550907.46 | J13: =SUM(J4:J12) -> 1.469494589e+10 | K13: =SUM(K4:K12) -> 10989.75175
B14: Duration | C14: =J13/I13 -> 651.6343485
B15: Mod Duration | C15: =C14/(1+C9/100) -> 618.0143669
B16: Convexity | C16: =(1/(1+C9/100)^2)*K13/H13 -> 8.766839599
B20: Calculo FLUXO E PU BMF
E21: TAXA | F21: DU | G21: VF | H21: VPL | I21: Financeiro | J21: FIN * DU | K21: vp * ( t2 + t) | L21: Qtde Ajustada
E23: =VLOOKUP(F23,BMF!$B$5:$C$27,2,FALSE) -> 4.155 | F23: =F4 -> 99 | G23: =100000 -> 100000 | H23: =G23/((1+E23/100)^($F23/252)) -> 98413.40026 | I23: =H23*L23 -> 956189.88 | J23: =I23*F23 -> 94662798.12 | K23: =((F23/252)^2+F23/252)*I23 -> 523221.2481 | L23: =I4/H23*$H$59 -> 9.716053682
E24: =VLOOKUP(F24,BMF!$B$5:$C$27,2,FALSE) -> 4.32 | F24: 227 | G24: 100000 | H24: 96261.93825 | I24: =H24*L24 -> 930953.3366 | J24: =I24*F24 -> 211326407.4 | K24: 1593999.577 | L24: 9.671042923
B25: TAXA 0 cupom | C25: ='NTN-F'!B34 -> 5.304842057 | E25: =VLOOKUP(F25,BMF!$B$5:$C$27,2,FALSE) -> 4.61 | F25: 350 | G25: 100000 | H25: 93932.30878 | I25: =H25*L25 -> 907330.3574 | J25: =I25*F25 -> 317565625.1 | K25: 3010432.513 | L25: 9.659406536
E26: =VLOOKUP(F26,BMF!$B$5:$C$27,2,FALSE) -> 4.92 | F26: 478 | G26: 100000 | H26: 91292.58008 | I26: =H26*L26 -> 883383.3545 | J26: =I26*F26 -> 422257243.4 | K26: 4853990.106 | L26: 9.676398167
B27: Duration | C27: =J32/I32 -> 651.6343485 | E27: =VLOOKUP(F27,BMF!$B$5:$C$27,2,FALSE) -> 5.2 | F27: 602 | G27: 100000 | H27: 88594.51679 | I27: 860787.5733 | J27: 518194119.1 | K27: 6968659.891 | L27: =I8/H27*$H$59 -> 9.716036664
B28: Mod Duration | C28: =C27/(1+C25/100) -> 618.8075835 | E28: =VLOOKUP(F28,BMF!$B$5:$C$27,2,FALSE) -> 5.44 | F28: 729 | G28: 100000 | H28: 85792.37137 | I28: 18012262.96 | J28: 1.31309397e+10 | K28: 202844731.7 | L28: 209.9518019
B29: Convexity | C29: =(1/((1+C25/100)^2*I32))*K32 -> 8.789358381
I32: =SUM(I23:I31) -> 22550907.46 | J32: =SUM(J23:J31) -> 1.469494589e+10 | K32: =SUM(K23:K31) -> 219795035
D34: DURATION | E34: Ft. Ajuste hedge | F34: =C15/C28 -> 0.998718153 | G34: Fin Ajustado | H34: =I32*F34 -> 22522000.65
B35: Valor de B para imunizar A | D35: CONVEXIDADE | E35: Ft. Ajuste hedge | F35: =(C15+C16^2)/(C28+C29^2) -> 0.9982924459 | G35: Fin Ajustado | H35: =I32*F35 -> 22512400.56
B39: Proteção da carteira
B41: DU | C41: 0
B42: Var Taxa de juros | C42: 0.01
C43: 2
B44: NTN-F | H44: BM&F
B45: DU | C45: Taxa | D45: VF | E45: VPL | F45: Fin | H45: TAXA | I45: DU | J45: VF | K45: VPL | L45: Fin DT | M45: Qtde Ajustada DT | N45: Fin CV | O45: Qtde Ajustada CV
B46: =F4-$C$41 -> 99 | C46: =$C$10+$C$42 -> 5.417 | D46: =G4 -> 48.80885 | E46: =D46/((1+$C46/100)^($B46/252)) -> 47.80771223 | F46: =E46*$C$12 -> 956154.2446 | H46: =E23+$C$42 -> 4.165 | I46: =F23-$C$41 -> 99 | J46: =G23 -> 100000 | K46: =J46/((1+H46/100)^(I46/252)) -> 98409.6885 | L46: =K46*M46 -> 954928.1734 | M46: =L23*$F$34 -> 9.703599188 | N46: =K46*O46 -> 954521.1319 | O46: =L23*$F$35 -> 9.699462994
B47: 227 | C47: 5.417 | D47: 48.80885 | E47: 46.54368929 | F47: 930873.7858 | H47: 4.33 | I47: 227 | J47: 100000 | K47: 96253.62687 | L47: 929679.7203 | M47: 9.658646126 | N47: 929283.441 | O47: 9.654529094
B48: 350 | C48: 5.417 | D48: 48.80885 | E48: 45.36054086 | F48: 907210.8171 | H48: 4.62 | I48: 350 | J48: 100000 | K48: 93919.83898 | L48: 906047.0022 | M48: 9.647024655 | N48: 905660.7965 | O48: 9.642912577
B49: 478 | C49: 5.417 | D49: 48.80885 | E49: 44.16122046 | F49: 883224.4093 | H49: 4.93 | I49: 478 | J49: 100000 | K49: 91276.07777 | L49: 882091.514 | M49: 9.663994505 | N49: 881715.5194 | O49: 9.659875193
B50: 602 | C50: 5.417 | D50: 48.80885 | E50: 43.02962602 | F50: 860592.5203 | H50: 5.21 | I50: 602 | J50: 100000 | K50: 88574.40193 | L50: 859488.9892 | M50: 9.703582191 | N50: 859122.6289 | O50: 9.699446005
B51: 729 | C51: 5.417 | D51: 1048.80885 | E51: 900.3660235 | F51: 18007320.47 | H51: 5.45 | I51: 729 | J51: 100000 | K51: 85768.83768 | L51: 17984239.39 | M51: 209.6826758 | N51: 17976573.54 | O51: 209.5932978
E55: =SUM(E46:E54) -> 1127.268812 | F55: =SUM(F46:F54) -> 22545376.25 | L55: =SUM(L46:L54) -> 22516474.78 | N55: =SUM(N46:N54) -> 22506877.06
B58: Variação ocorrida em A | C58: =F55-I13 -> -5531.212624 | E58: Im(Fluxo) | G58: Ajuste para Di( default = 1)
B59: Variação ocorrida em B DUR | C59: =(L55-H34) -> -5525.862847 | E59: =C58-C59 -> -5.349777222 | H59: 1
B60: Variação ocorrida em B CONV | C60: =(N55-H35) -> -5523.507428 | E60: =C58-C60 -> -7.705195993 | H60: =I13-I32 -> 0
B62: TEÓRICO
B63: Variação ocorrida em A | C63: =-(((C15/252)*C42/100)+(C16*((C42/100)^2)/2))*I13*(C41+1) -> -5531.458658 | E63: Im(Conv)
B64: Variação ocorrida em B | C64: =-(((C28/252)*C42/100)+(C29*((C42/100)^2)/2))*H35*(C41+1) -> -5529.102122 | E64: =C63-C64 -> -2.356535809
B66: TEÓRICO
B67: Variação ocorrida em A | C67: =-C15/252*C42*I13/100*(C41+1) -> -5530.470157 | E67: Im(MDur)
B68: Variação ocorrida em B | C68: =-C28/252*C42*H35/100*(C41+1) -> -5528.112775 | E68: =C67-C68 -> -2.357382649

Sheet Geral DUR
A1: =BMF!L1 -> 2020-02-05
B2: Carteira Ativa A | G2: Carteira Passiva B | M2: Atingir meta 0
A3: DU | B3: Taxa | C3: QTDE | D3: VF | E3: VPL | G3: VF | H3: VPL | I3: Qtde | K3: Taxa | L3: Qtde teórica | M3: =F4-J4 -> 0 | N3: Ajuste DI
F4: =SUM(F5:F16) -> 72054449.81 | J4: =SUM(J5:J16) -> 72054449.81 | N4: 1
A5: 38 | B5: 4.175 | C5: 100 | D5: 1000 | E5: =D5/((1+$B5/100)^($A5/252)) -> 993.851221 | F5: =E5*D5 -> 993851.221 | G5: 100000 | H5: =G5/((1+$K5/100)^($A5/252)) -> 99384.40282 | I5: =F5/H5*$N$4 -> 10.00007237 | J5: =I5*H5 -> 993851.221 | K5: =VLOOKUP(A5,BMF!$B$5:$C$27,2,FALSE) -> 4.18 | L5: 1
A6: 99 | B6: 4.1494 | C6: 100 | D6: 1000 | E6: =D6/((1+$B6/100)^($A6/252)) -> 984.1547906 | F6: =E6*D6 -> 984154.7906 | G6: 100000 | H6: =G6/((1+$K6/100)^($A6/252)) -> 98413.40026 | I6: =F6/H6*$N$4 -> 10.00021123 | J6: =I6*H6 -> 984154.7906 | K6: =VLOOKUP(A6,BMF!$B$5:$C$27,2,FALSE) -> 4.155 | L6: 1
A7: 164 | B7: 4.1931 | C7: 100 | D7: 1000 | E7: 973.6223132 | F7: 973622.3132 | G7: 100000 | H7: 97351.95534 | I7: 10.00105555 | J7: 973622.3132 | K7: =VLOOKUP(A7,BMF!$B$5:$C$27,2,FALSE) -> 4.21 | L7: 1
A8: 288 | B8: 4.4319 | C8: 300 | D8: 1000 | E8: 951.6480593 | F8: 951648.0593 | G8: 100000 | H8: 95145.95933 | I8: 10.00198081 | J8: 951648.0593 | K8: =VLOOKUP(A8,BMF!$B$5:$C$27,2,FALSE) -> 4.45 | L8: 1
A9: 350 | B9: 4.5833 | C9: 400 | D9: 1000 | E9: 939.6561712 | F9: 939656.1712 | G9: 100000 | H9: 93932.30878 | I9: 10.00354599 | J9: 939656.1712 | K9: =VLOOKUP(A9,BMF!$B$5:$C$27,2,FALSE) -> 4.61 | L9: 1
A10: 415 | B10: 4.75 | C10: 100 | D10: 1000 | E10: 926.4240671 | F10: 926424.0671 | G10: 100000 | H10: 92613.28455 | I10: 10.00314449 | J10: 926424.0671 | K10: =VLOOKUP(A10,BMF!$B$5:$C$27,2,FALSE) -> 4.77 | L10: 1
A11: 478 | B11: 4.9088 | C11: 100 | D11: 1000 | E11: 913.1106807 | F11: 913110.6807 | G11: 100000 | H11: 91292.58008 | I11: 10.00202514 | J11: 913110.6807 | K11: =VLOOKUP(A11,BMF!$B$5:$C$27,2,FALSE) -> 4.92 | L11: 1
A12: 540 | B12: 5.0709 | C12: 300 | D12: 5000 | E12: 4497.137621 | F12: 22485688.1 | G12: 100000 | H12: 89944.40334 | I12: 249.9954113 | J12: 22485688.1 | K12: =VLOOKUP(A12,BMF!$B$5:$C$27,2,FALSE) -> 5.07 | L12: 1
A13: 602 | B13: 5.205 | C13: 200 | D13: 5000 | E13: 4429.222927 | F13: 22146114.64 | G13: 100000 | H13: 88594.51679 | I13: 249.9716172 | J13: 22146114.64 | K13: =VLOOKUP(A13,BMF!$B$5:$C$27,2,FALSE) -> 5.2 | L13: 1
A14: 853 | B14: 5.6738 | C14: 100 | D14: 5000 | E14: 4148.035953 | F14: 20740179.77 | G14: 100000 | H14: 82997.40142 | I14: 249.8895075 | J14: 20740179.77 | K14: =VLOOKUP(A14,BMF!$B$5:$C$27,2,FALSE) -> 5.66 | L14: 1
A17: Duration | E17: =SUMPRODUCT(A5:A16,F5:F16)/F4 -> 622.9228725 | H17: =SUMPRODUCT($A$5:$A$16,J5:J16)/J4 -> 622.9228725
A18: Modify Duration | C18: tx 0 equiv. | D18: =_xll.SRS1Splines.Functions25.Cubic_Spline(A5:A14,B5:B14,E17) -> 5.246596099 | E18: =-E17/(1+D18/100) -> -591.8698519 | G18: =cubic_Spline(A5:A14,K5:K14,H17) -> 5.24098568 | H18: =-H17/(1+G18/100) -> -591.9014046
A20: Valor de B para imunizar A | D20: Ft. Ajuste: | E20: =E18/H18 -> 0.9999466926 | G20: =F4*E20 -> 72050608.78
A22: Deslocamento paralelo = Variações iguais para todos os vértices
A23: du
A24: 0 | B24: Incremento | C24: 0.01
B25: Carteira Ativa A | G25: Carteira Passiva B
A26: DU | B26: Taxa | C26: QTDE | D26: VF | E26: VPL | G26: VF | H26: VPL | I26: Qtde | K26: Taxa
F27: =SUM(F28:F39) -> 72037542.78 | J27: =SUM(J28:J39) -> 72033702.64
A28: =A5-$A$24 -> 38 | B28: =B5+$C$24 -> 4.185 | C28: =C5 -> 100 | D28: 1000 | E28: =D28/((1+$B28/100)^($A28/252)) -> 993.8368358 | F28: =E28*D28 -> 993836.8358 | G28: =G5 -> 100000 | H28: =G28/((1+$K28/100)^($A28/252)) -> 99382.96437 | I28: =F28/H28*$E$20 -> 9.999539289 | J28: =I28*H28 -> 993783.8569 | K28: =K5+$C$24 -> 4.19
A29: 99 | B29: 4.1594 | C29: 100 | D29: 1000 | E29: =D29/((1+$B29/100)^($A29/252)) -> 984.1176703 | F29: =E29*D29 -> 984117.6703 | G29: =G6 -> 100000 | H29: =G29/((1+$K29/100)^($A29/252)) -> 98409.6885 | I29: =F29/H29*$E$20 -> 9.999678126 | J29: =I29*H29 -> 984065.2096 | K29: =K6+$C$24 -> 4.165
A30: 164 | B30: 4.2031 | C30: 100 | D30: 1000 | E30: 973.5615053 | F30: 973561.5053 | G30: =G7 -> 100000 | H30: 97345.87617 | I30: 10.00052232 | J30: 973509.6073 | K30: =K7+$C$24 -> 4.22
A31: 288 | B31: 4.4419 | C31: 300 | D31: 1000 | E31: 951.5439258 | F31: 951543.9258 | G31: 100000 | H31: 95135.54985 | I31: 10.00144744 | J31: 951493.2015 | K31: 4.46
A32: 350 | B32: 4.5933 | C32: 400 | D32: 1000 | E32: 939.5313971 | F32: 939531.3971 | G32: 100000 | H32: 93919.83898 | I32: 10.00301239 | J32: 939481.3132 | K32: 4.62
A33: 415 | B33: 4.76 | C33: 100 | D33: 1000 | E33: 926.2784379 | F33: 926278.4379 | G33: 100000 | H33: 92598.72898 | I33: 10.00261095 | J33: 926229.0604 | K33: 4.78
A34: 478 | B34: 4.9188 | C34: 100 | D34: 1000 | E34: 912.9456066 | F34: 912945.6066 | G34: 100000 | H34: 91276.07777 | I34: 10.00149176 | J34: 912896.9399 | K34: 4.93
A35: 540 | B35: 5.0809 | C35: 300 | D35: 5000 | E35: 4496.220594 | F35: 22481102.97 | G35: 100000 | H35: 89926.06231 | I35: 249.9820851 | J35: 22479904.56 | K35: 5.08
A36: 602 | B36: 5.215 | C36: 200 | D36: 5000 | E36: 4428.217346 | F36: 22141086.73 | G36: 100000 | H36: 88574.40193 | I36: 249.9582946 | J36: 22139906.45 | K36: 5.21
A37: 853 | B37: 5.6838 | C37: 100 | D37: 5000 | E37: 4146.707539 | F37: 20733537.7 | G37: 100000 | H37: 82970.81791 | I37: 249.876197 | J37: 20732432.44 | K37: 5.67
A40: Duration | E40: =SUMPRODUCT(A28:A39,F28:F39)/F27 -> 622.9108805 | H40: =SUMPRODUCT($A$5:$A$16,J28:J39)/J27 -> 622.9108805
A41: Modify Duration | C41: tx 0 equiv. | D41: =cubic_Spline(A28:A37,B28:B37,E40)/100 -> 0.0525657247 | E41: =-E40/(1+D41/100) -> -622.5836149 | F41: tx 0 equiv. | G41: =cubic_Spline(A28:A37,K28:K37,H40)/100 -> 0.05250962358 | H41: =-H40/(1+D41/100) -> -622.5836149
A43: Variação ocorrida em A | E43: =F27-F4 -> -16907.03646 | H43: Imunização
A44: Variação ocorrida em B | E44: =J27-G20 -> -16906.13519 | H44: =E43-E44 -> -0.9012696743
A47: Deslocamentos diferentes nos vértices:
B49: Carteira Ativa A | G49: Carteira Passiva B | M49: INCREMENTO
A50: DU | B50: Taxa | C50: QTDE | D50: VF | E50: VPL | G50: VF | H50: VPL | I50: Qtde | K50: Taxa
F51: =SUM(F52:F63) -> 72037542.78 | J51: =SUM(J52:J63) -> 72033702.64
A52: =A28 -> 38 | B52: =B5+M52 -> 4.185 | C52: =C28 -> 100 | D52: =D28 -> 1000 | E52: =D52/((1+$B52/100)^($A52/252)) -> 993.8368358 | F52: =E52*D52 -> 993836.8358 | G52: =G28 -> 100000 | H52: =G52/((1+$K52/100)^($A52/252)) -> 99382.96437 | I52: =I28 -> 9.999539289 | J52: =I52*H52 -> 993783.8569 | K52: =K5+M52 -> 4.19 | M52: 0.01
A53: =A29 -> 99 | B53: =B6+M53 -> 4.1594 | C53: =C29 -> 100 | D53: 1000 | E53: =D53/((1+$B53/100)^($A53/252)) -> 984.1176703 | F53: =E53*D53 -> 984117.6703 | G53: =G29 -> 100000 | H53: =G53/((1+$K53/100)^($A53/252)) -> 98409.6885 | I53: =I29 -> 9.999678126 | J53: =I53*H53 -> 984065.2096 | K53: =K6+M53 -> 4.165 | M53: 0.01
A54: 164 | B54: 4.2031 | C54: 100 | D54: 1000 | E54: 973.5615053 | F54: 973561.5053 | G54: =G30 -> 100000 | H54: 97345.87617 | I54: 10.00052232 | J54: 973509.6073 | K54: =K7+M54 -> 4.22 | M54: 0.01
A55: 288 | B55: 4.4419 | C55: 300 | D55: 1000 | E55: 951.5439258 | F55: 951543.9258 | G55: 100000 | H55: 95135.54985 | I55: 10.00144744 | J55: 951493.2015 | K55: 4.46 | M55: 0.01
A56: 350 | B56: 4.5933 | C56: 400 | D56: 1000 | E56: 939.5313971 | F56: 939531.3971 | G56: 100000 | H56: 93919.83898 | I56: 10.00301239 | J56: 939481.3132 | K56: 4.62 | M56: 0.01
A57: 415 | B57: 4.76 | C57: 100 | D57: 1000 | E57: 926.2784379 | F57: 926278.4379 | G57: 100000 | H57: 92598.72898 | I57: 10.00261095 | J57: 926229.0604 | K57: 4.78 | M57: 0.01
A58: 478 | B58: 4.9188 | C58: 100 | D58: 1000 | E58: 912.9456066 | F58: 912945.6066 | G58: 100000 | H58: 91276.07777 | I58: 10.00149176 | J58: 912896.9399 | K58: 4.93 | M58: 0.01
A59: 540 | B59: 5.0809 | C59: 300 | D59: 5000 | E59: 4496.220594 | F59: 22481102.97 | G59: 100000 | H59: 89926.06231 | I59: 249.9820851 | J59: 22479904.56 | K59: 5.08 | M59: 0.01
A60: 602 | B60: 5.215 | C60: 200 | D60: 5000 | E60: 4428.217346 | F60: 22141086.73 | G60: 100000 | H60: 88574.40193 | I60: 249.9582946 | J60: 22139906.45 | K60: 5.21 | M60: 0.01
A61: 853 | B61: 5.6838 | C61: 100 | D61: 5000 | E61: 4146.707539 | F61: 20733537.7 | G61: 100000 | H61: 82970.81791 | I61: 249.876197 | J61: 20732432.44 | K61: 5.67 | M61: 0.01
M62: 0.01
A64: Duration | E64: =SUMPRODUCT(A52:A63,F52:F63)/F51 -> 622.9108805 | H64: =SUMPRODUCT($A$5:$A$16,J52:J63)/J51 -> 622.9108805
A65: Modify Duration | C65: tx média | D65: =D41 -> 0.0525657247 | E65: =-E64/(1+D65/100) -> -622.5836149 | H65: =-H64/(1+D65/100) -> -622.5836149
A67: Variação ocorrida em A | E67: =F51-F4 -> -16907.03646 | H67: Imunização
A68: Variação ocorrida em B | E68: =J51-G20 -> -16906.13519 | H68: =E67-E68 -> -0.9012696743

Sheet BMF
A1: TAXA DE JUROS | L1: 2020-02-05
A2: BMF Bovespa - Taxa de Juros
A3: DI1 - Depósito Interfinanceiro de um dia | M3: =BALANCEAMENTO!I2 -> 0
A4: Dvc | B4: DU | C4: Ultima | D4: Var | E4: Neg | F4: Cng | G4: Cab | H4: Mín | I4: Máx | J4: Abe | K4: Ajut | L4: Ajat
A5: 2020-03-02 | B5: 16 | C5: 4.2 | D5: -0.23753 | E5: 72 | F5: 627035 | G5: 1595378 | H5: 4.185 | I5: 4.203 | J5: 4.185 | K5: 4.197 | L5: 4.198 | M5: =B5-$M$3 -> 16
A6: 2020-04-01 | B6: 38 | C6: 4.18 | D6: -0.11947 | E6: 1627 | F6: 634495 | G6: 5521510 | H6: 4.166 | I6: 4.185 | J6: 4.173 | K6: 4.17 | L6: 4.174 | M6: =B6-$M$3 -> 38
A7: 2020-05-04 | B7: 58 | C7: 4.15 | D7: -0.24039 | E7: 37 | F7: 26295 | G7: 218825 | H7: 4.147 | I7: 4.15 | J7: 4.15 | K7: 4.15 | L7: 4.151 | M7: 58
A8: 2020-06-01 | B8: 78 | C8: 4.16 | D8: -0.12005 | E8: 3 | F8: 270 | G8: 125280 | H8: 4.16 | I8: 4.18 | J8: 4.16 | K8: 4.143 | L8: 4.147 | M8: 78
A9: 2020-07-01 | B9: 99 | C9: 4.155 | D9: 0 | E9: 1413 | F9: 364175 | G9: 5266707 | H9: 4.13 | I9: 4.16 | J9: 4.145 | K9: 4.14 | L9: 4.142 | M9: 99
A10: 2020-08-03 | B10: 122 | C10: 4.155 | D10: 0.24126 | E10: 1 | F10: 200 | G10: 72720 | H10: 4.155 | I10: 4.155 | J10: 4.155 | K10: 4.143 | L10: 4.148 | M10: 122
A11: 2020-09-01 | B11: 143 | C11: 4.15 | D11: 0.12063 | E11: 6 | F11: 550 | G11: 37370 | H11: 4.15 | I11: 4.15 | J11: 4.15 | K11: 4.145 | L11: 4.143 | M11: 143
A12: 2020-10-01 | B12: 164 | C12: 4.21 | D12: 0.11891 | E12: 458 | F12: 66570 | G12: 695068 | H12: 4.185 | I12: 4.21 | J12: 4.195 | K12: 4.185 | L12: 4.194 | M12: 164
A13: 2020-11-03 | B13: 185 | C13: 4.22 | D13: -0.23641 | E13: 6 | F13: 685 | G13: 37945 | H13: 4.21 | I13: 4.22 | J13: 4.21 | K13: 4.21 | L13: 4.219 | M13: 185
A14: 2020-12-01 | B14: 205 | C14: 4.25 | D14: 0.3305 | E14: 35 | F14: 5075 | G14: 37095 | H14: 4.24 | I14: 4.25 | J14: 4.24 | K14: 4.228 | L14: 4.235 | M14: 205
A15: 2021-01-04 | B15: 227 | C15: 4.32 | D15: 0.34843 | E15: 2752 | F15: 430415 | G15: 4303082 | H15: 4.275 | I15: 4.325 | J15: 4.285 | K15: 4.29 | L15: 4.295 | M15: 227
A16: 2021-04-01 | B16: 288 | C16: 4.45 | D16: 0.45147 | E16: 165 | F16: 12590 | G16: 549347 | H16: 4.4 | I16: 4.45 | J16: 4.41 | K16: 4.42 | L16: 4.42 | M16: 288
A17: 2021-07-01 | B17: 350 | C17: 4.61 | D17: 0.21739 | E17: 943 | F17: 36205 | G17: 902722 | H17: 4.55 | I17: 4.61 | J17: 4.58 | K17: 4.57 | L17: 4.581 | M17: 350
A18: 2021-10-01 | B18: 415 | C18: 4.77 | D18: -0.41754 | E18: 62 | F18: 2145 | G18: 449222 | H18: 4.73 | I18: 4.77 | J18: 4.74 | K18: 4.73 | L18: 4.751 | M18: 415
A19: 2022-01-03 | B19: 478 | C19: 4.92 | D19: 0 | E19: 3269 | F19: 272275 | G19: 1392762 | H19: 4.87 | I19: 4.92 | J19: 4.9 | K19: 4.89 | L19: 4.911 | M19: 478
A20: 2022-04-01 | B20: 540 | C20: 5.07 | D20: 0 | E20: 99 | F20: 5650 | G20: 146310 | H20: 5.04 | I20: 5.07 | J20: 5.04 | K20: 5.05 | L20: 5.071 | M20: 540
A21: 2022-07-01 | B21: 602 | C21: 5.2 | D21: -0.19194 | E21: 630 | F21: 22565 | G21: 405582 | H21: 5.16 | I21: 5.21 | J21: 5.2 | K21: 5.18 | L21: 5.201 | M21: 602
A22: 2022-10-03 | B22: 667 | C22: 5.32 | D22: -0.56075 | E22: 3 | F22: 130 | G22: 49715 | H22: 5.3 | I22: 5.32 | J22: 5.3 | K22: 5.325 | L22: 5.351 | M22: 667
A23: 2023-01-02 | B23: 729 | C23: 5.44 | D23: -0.18349 | E23: 10663 | F23: 318205 | G23: 1683036 | H23: 5.4 | I23: 5.46 | J23: 5.45 | K23: 5.42 | L23: 5.451 | M23: 729
A24: 2023-04-03 | B24: 792 | C24: 5.53 | D24: -0.71813 | E24: 18 | F24: 315 | G24: 21250 | H24: 5.51 | I24: 5.55 | J24: 5.53 | K24: 5.525 | L24: 5.571 | M24: 792
A25: 2023-07-03 | B25: 853 | C25: 5.66 | D25: -0.35211 | E25: 499 | F25: 25755 | G25: 790821 | H25: 5.62 | I25: 5.69 | J25: 5.68 | K25: 5.64 | L25: 5.682 | M25: 853
A26: 2023-10-02 | B26: 917 | C26: 5.74 | D26: -0.69204 | E26: 13 | F26: 95 | G26: 17645 | H26: 5.72 | I26: 5.75 | J26: 5.75 | K26: 5.74 | L26: 5.782 | M26: 917
A27: 2024-01-02 | B27: 978 | C27: 5.83 | D27: -0.51195 | E27: 1112 | F27: 46785 | G27: 406407 | H27: 5.8 | I27: 5.86 | J27: 5.85 | K27: 5.82 | L27: 5.862 | M27: 978

Sheet FERIADOS
A1: 2009-01-01 | B1: 2009-02-23 | C1: 2009-02-24 | D1: 2009-04-10 | E1: 2009-04-21 | F1: 2009-05-01 | G1: 2009-06-11 | H1: 2009-09-07 | I1: 2009-10-12 | J1: 2009-11-02 | K1: 2009-11-15 | L1: 2009-12-25
A2: 2010-01-01 | B2: 2010-02-15 | C2: 2010-02-16 | D2: 2010-04-02 | E2: 2010-04-21 | F2: 2010-05-01 | G2: 2010-06-03 | H2: 2010-09-07 | I2: 2010-10-12 | J2: 2010-11-02 | K2: 2010-11-15 | L2: 2010-12-25
A3: 2011-01-01 | B3: 2011-03-07 | C3: 2011-03-08 | D3: 2011-04-21 | E3: 2011-04-22 | F3: 2011-05-01 | G3: 2011-06-23 | H3: 2011-09-07 | I3: 2011-10-12 | J3: 2011-11-02 | K3: 2011-11-15 | L3: 2011-12-25
A4: 2012-01-01 | B4: 2012-02-20 | C4: 2012-02-21 | D4: 2012-04-06 | E4: 2012-04-21 | F4: 2012-05-01 | G4: 2012-06-07 | H4: 2012-09-07 | I4: 2012-10-12 | J4: 2012-11-02 | K4: 2012-11-15 | L4: 2012-12-25
A5: 2013-01-01 | B5: 2013-02-11 | C5: 2013-02-12 | D5: 2013-03-29 | E5: 2013-04-21 | F5: 2013-05-01 | G5: 2013-05-30 | H5: 2013-09-07 | I5: 2013-10-12 | J5: 2013-11-02 | K5: 2013-11-15 | L5: 2013-12-25
A6: 2014-01-01 | B6: 2014-03-03 | C6: 2014-03-04 | D6: 2014-04-18 | E6: 2014-04-21 | F6: 2014-05-01 | G6: 2014-06-19 | H6: 2014-09-07 | I6: 2014-10-12 | J6: 2014-11-02 | K6: 2014-11-15 | L6: 2014-12-25
A7: 2015-01-01 | B7: 2015-02-16 | C7: 2015-02-17 | D7: 2015-04-03 | E7: 2015-04-21 | F7: 2015-05-01 | G7: 2015-06-04 | H7: 2015-09-07 | I7: 2015-10-12 | J7: 2015-11-02 | K7: 2015-11-15 | L7: 2015-12-25
A8: 2016-01-01 | B8: 2016-02-08 | C8: 2016-02-09 | D8: 2016-03-25 | E8: 2016-04-21 | F8: 2016-05-01 | G8: 2016-05-26 | H8: 2016-09-07 | I8: 2016-10-12 | J8: 2016-11-02 | K8: 2016-11-15 | L8: 2016-12-25
A9: 2017-01-01 | B9: 2017-02-27 | C9: 2017-02-28 | D9: 2017-04-14 | E9: 2017-04-21 | F9: 2017-05-01 | G9: 2017-06-15 | H9: 2017-09-07 | I9: 2017-10-12 | J9: 2017-11-02 | K9: 2017-11-15 | L9: 2017-12-25
A10: 2018-01-01 | B10: 2018-02-12 | C10: 2018-02-13 | D10: 2018-03-30 | E10: 2018-04-21 | F10: 2018-05-01 | G10: 2018-05-31 | H10: 2018-09-07 | I10: 2018-10-12 | J10: 2018-11-02 | K10: 2018-11-15 | L10: 2018-12-25
A11: 2019-01-01 | B11: 2019-03-04 | C11: 2019-03-05 | D11: 2019-04-19 | E11: 2019-04-21 | F11: 2019-05-01 | G11: 2019-06-20 | H11: 2019-09-07 | I11: 2019-10-12 | J11: 2019-11-02 | K11: 2019-11-15 | L11: 2019-12-25
A12: 2020-01-01 | B12: 2020-02-24 | C12: 2020-02-25 | D12: 2020-04-10 | E12: 2020-04-21 | F12: 2020-05-01 | G12: 2020-06-11 | H12: 2020-09-07 | I12: 2020-10-12 | J12: 2020-11-02 | K12: 2020-11-15 | L12: 2020-12-25
A13: 2021-01-01 | B13: 2021-02-15 | C13: 2021-02-16 | D13: 2021-04-02 | E13: 2021-04-21 | F13: 2021-05-01 | G13: 2021-06-03 | H13: 2021-09-07 | I13: 2021-10-12 | J13: 2021-11-02 | K13: 2021-11-15 | L13: 2021-12-25
A14: 2022-01-01 | B14: 2022-02-28 | C14: 2022-03-01 | D14: 2022-04-15 | E14: 2022-04-21 | F14: 2022-05-01 | G14: 2022-06-16 | H14: 2022-09-07 | I14: 2022-10-12 | J14: 2022-11-02 | K14: 2022-11-15 | L14: 2022-12-25
A15: 2023-01-01 | B15: 2023-02-20 | C15: 2023-02-21 | D15: 2023-04-07 | E15: 2023-04-21 | F15: 2023-05-01 | G15: 2023-06-08 | H15: 2023-09-07 | I15: 2023-10-12 | J15: 2023-11-02 | K15: 2023-11-15 | L15: 2023-12-25
A16: 2024-01-01 | B16: 2024-02-12 | C16: 2024-02-13 | D16: 2024-03-29 | E16: 2024-04-21 | F16: 2024-05-01 | G16: 2024-05-30 | H16: 2024-09-07 | I16: 2024-10-12 | J16: 2024-11-02 | K16: 2024-11-15 | L16: 2024-12-25
A17: 2025-01-01 | B17: 2025-03-03 | C17: 2025-03-04 | D17: 2025-04-18 | E17: 2025-04-21 | F17: 2025-05-01 | G17: 2025-06-19 | H17: 2025-09-07 | I17: 2025-10-12 | J17: 2025-11-02 | K17: 2025-11-15 | L17: 2025-12-25
A18: 2026-01-01 | B18: 2026-02-16 | C18: 2026-02-17 | D18: 2026-04-03 | E18: 2026-04-21 | F18: 2026-05-01 | G18: 2026-06-04 | H18: 2026-09-07 | I18: 2026-10-12 | J18: 2026-11-02 | K18: 2026-11-15 | L18: 2026-12-25
A19: 2027-01-01 | B19: 2027-02-08 | C19: 2027-02-09 | D19: 2027-03-26 | E19: 2027-04-21 | F19: 2027-05-01 | G19: 2027-05-27 | H19: 2027-09-07 | I19: 2027-10-12 | J19: 2027-11-02 | K19: 2027-11-15 | L19: 2027-12-25
A20: 2028-01-01 | B20: 2028-02-28 | C20: 2028-02-29 | D20: 2028-04-14 | E20: 2028-04-21 | F20: 2028-05-01 | G20: 2028-06-15 | H20: 2028-09-07 | I20: 2028-10-12 | J20: 2028-11-02 | K20: 2028-11-15 | L20: 2028-12-25
A21: 2029-01-01 | B21: 2029-02-12 | C21: 2029-02-13 | D21: 2029-03-30 | E21: 2029-04-21 | F21: 2029-05-01 | G21: 2029-05-31 | H21: 2029-09-07 | I21: 2029-10-12 | J21: 2029-11-02 | K21: 2029-11-15 | L21: 2029-12-25
A22: 2030-01-01 | B22: 2030-03-04 | C22: 2030-03-05 | D22: 2030-04-19 | E22: 2030-04-21 | F22: 2030-05-01 | G22: 2030-06-20 | H22: 2030-09-07 | I22: 2030-10-12 | J22: 2030-11-02 | K22: 2030-11-15 | L22: 2030-12-25
A23: 2031-01-01 | B23: 2031-02-24 | C23: 2031-02-25 | D23: 2031-04-11 | E23: 2031-04-21 | F23: 2031-05-01 | G23: 2031-06-12 | H23: 2031-09-07 | I23: 2031-10-12 | J23: 2031-11-02 | K23: 2031-11-15 | L23: 2031-12-25
A24: 2032-01-01 | B24: 2032-02-09 | C24: 2032-02-10 | D24: 2032-03-26 | E24: 2032-04-21 | F24: 2032-05-01 | G24: 2032-05-27 | H24: 2032-09-07 | I24: 2032-10-12 | J24: 2032-11-02 | K24: 2032-11-15 | L24: 2032-12-25
A25: 2033-01-01 | B25: 2033-02-28 | C25: 2033-03-01 | D25: 2033-04-15 | E25: 2033-04-21 | F25: 2033-05-01 | G25: 2033-06-16 | H25: 2033-09-07 | I25: 2033-10-12 | J25: 2033-11-02 | K25: 2033-11-15 | L25: 2033-12-25
A26: 2034-01-01 | B26: 2034-02-20 | C26: 2034-02-21 | D26: 2034-04-07 | E26: 2034-04-21 | F26: 2034-05-01 | G26: 2034-06-08 | H26: 2034-09-07 | I26: 2034-10-12 | J26: 2034-11-02 | K26: 2034-11-15 | L26: 2034-12-25
A27: 2035-01-01 | B27: 2035-02-05 | C27: 2035-02-06 | D27: 2035-03-23 | E27: 2035-04-21 | F27: 2035-05-01 | G27: 2035-05-24 | H27: 2035-09-07 | I27: 2035-10-12 | J27: 2035-11-02 | K27: 2035-11-15 | L27: 2035-12-25
A28: 2036-01-01 | B28: 2036-02-25 | C28: 2036-02-26 | D28: 2036-04-11 | E28: 2036-04-21 | F28: 2036-05-01 | G28: 2036-06-12 | H28: 2036-09-07 | I28: 2036-10-12 | J28: 2036-11-02 | K28: 2036-11-15 | L28: 2036-12-25
A29: 2037-01-01 | B29: 2037-02-16 | C29: 2037-02-17 | D29: 2037-04-03 | E29: 2037-04-21 | F29: 2037-05-01 | G29: 2037-06-04 | H29: 2037-09-07 | I29: 2037-10-12 | J29: 2037-11-02 | K29: 2037-11-15 | L29: 2037-12-25
A30: 2038-01-01 | B30: 2038-03-08 | C30: 2038-03-09 | D30: 2038-04-21 | E30: 2038-04-23 | F30: 2038-05-01 | G30: 2038-06-24 | H30: 2038-09-07 | I30: 2038-10-12 | J30: 2038-11-02 | K30: 2038-11-15 | L30: 2038-12-25
A31: 2039-01-01 | B31: 2039-02-21 | C31: 2039-02-22 | D31: 2039-04-08 | E31: 2039-04-21 | F31: 2039-05-01 | G31: 2039-06-09 | H31: 2039-09-07 | I31: 2039-10-12 | J31: 2039-11-02 | K31: 2039-11-15 | L31: 2039-12-25
A32: 2040-01-01 | B32: 2040-02-13 | C32: 2040-02-14 | D32: 2040-03-30 | E32: 2040-04-21 | F32: 2040-05-01 | G32: 2040-05-31 | H32: 2040-09-07 | I32: 2040-10-12 | J32: 2040-11-02 | K32: 2040-11-15 | L32: 2040-12-25
A33: 2041-01-01 | B33: 2041-03-04 | C33: 2041-03-05 | D33: 2041-04-19 | E33: 2041-04-21 | F33: 2041-05-01 | G33: 2041-06-20 | H33: 2041-09-07 | I33: 2041-10-12 | J33: 2041-11-02 | K33: 2041-11-15 | L33: 2041-12-25
A34: 2042-01-01 | B34: 2042-02-17 | C34: 2042-02-18 | D34: 2042-04-04 | E34: 2042-04-21 | F34: 2042-05-01 | G34: 2042-06-05 | H34: 2042-09-07 | I34: 2042-10-12 | J34: 2042-11-02 | K34: 2042-11-15 | L34: 2042-12-25
A35: 2043-01-01 | B35: 2043-02-09 | C35: 2043-02-10 | D35: 2043-03-27 | E35: 2043-04-21 | F35: 2043-05-01 | G35: 2043-05-28 | H35: 2043-09-07 | I35: 2043-10-12 | J35: 2043-11-02 | K35: 2043-11-15 | L35: 2043-12-25
A36: 2044-01-01 | B36: 2044-02-29 | C36: 2044-03-01 | D36: 2044-04-15 | E36: 2044-04-21 | F36: 2044-05-01 | G36: 2044-06-16 | H36: 2044-09-07 | I36: 2044-10-12 | J36: 2044-11-02 | K36: 2044-11-15 | L36: 2044-12-25
A37: 2045-01-01 | B37: 2045-02-20 | C37: 2045-02-21 | D37: 2045-04-07 | E37: 2045-04-21 | F37: 2045-05-01 | G37: 2045-06-08 | H37: 2045-09-07 | I37: 2045-10-12 | J37: 2045-11-02 | K37: 2045-11-15 | L37: 2045-12-25
A38: 2046-01-01 | B38: 2046-02-05 | C38: 2046-02-06 | D38: 2046-03-23 | E38: 2046-04-21 | F38: 2046-05-01 | G38: 2046-05-24 | H38: 2046-09-07 | I38: 2046-10-12 | J38: 2046-11-02 | K38: 2046-11-15 | L38: 2046-12-25
A39: 2047-01-01 | B39: 2047-02-25 | C39: 2047-02-26 | D39: 2047-04-12 | E39: 2047-04-21 | F39: 2047-05-01 | G39: 2047-06-13 | H39: 2047-09-07 | I39: 2047-10-12 | J39: 2047-11-02 | K39: 2047-11-15 | L39: 2047-12-25
A40: 2048-01-01 | B40: 2048-02-17 | C40: 2048-02-18 | D40: 2048-04-03 | E40: 2048-04-21 | F40: 2048-05-01 | G40: 2048-06-04 | H40: 2048-09-07 | I40: 2048-10-12 | J40: 2048-11-02 | K40: 2048-11-15 | L40: 2048-12-25
A41: 2049-01-01 | B41: 2049-03-01 | C41: 2049-03-02 | D41: 2049-04-16 | E41: 2049-04-21 | F41: 2049-05-01 | G41: 2049-06-17 | H41: 2049-09-07 | I41: 2049-10-12 | J41: 2049-11-02 | K41: 2049-11-15 | L41: 2049-12-25
A42: 2050-01-01 | B42: 2050-02-21 | C42: 2050-02-22 | D42: 2050-04-08 | E42: 2050-04-21 | F42: 2050-05-01 | G42: 2050-06-09 | H42: 2050-09-07 | I42: 2050-10-12 | J42: 2050-11-02 | K42: 2050-11-15 | L42: 2050-12-25
A43: 2051-01-01 | B43: 2051-02-13 | C43: 2051-02-14 | D43: 2051-03-31 | E43: 2051-04-21 | F43: 2051-05-01 | G43: 2051-06-01 | H43: 2051-09-07 | I43: 2051-10-12 | J43: 2051-11-02 | K43: 2051-11-15 | L43: 2051-12-25
A44: 2052-01-01 | B44: 2052-03-04 | C44: 2052-03-05 | D44: 2052-04-19 | E44: 2052-04-21 | F44: 2052-05-01 | G44: 2052-06-20 | H44: 2052-09-07 | I44: 2052-10-12 | J44: 2052-11-02 | K44: 2052-11-15 | L44: 2052-12-25
A45: 2053-01-01 | B45: 2053-02-17 | C45: 2053-02-18 | D45: 2053-04-04 | E45: 2053-04-21 | F45: 2053-05-01 | G45: 2053-06-05 | H45: 2053-09-07 | I45: 2053-10-12 | J45: 2053-11-02 | K45: 2053-11-15 | L45: 2053-12-25
A46: 2054-01-01 | B46: 2054-02-09 | C46: 2054-02-10 | D46: 2054-03-27 | E46: 2054-04-21 | F46: 2054-05-01 | G46: 2054-05-28 | H46: 2054-09-07 | I46: 2054-10-12 | J46: 2054-11-02 | K46: 2054-11-15 | L46: 2054-12-25
A47: 2055-01-01 | B47: 2055-03-01 | C47: 2055-03-02 | D47: 2055-04-16 | E47: 2055-04-21 | F47: 2055-05-01 | G47: 2055-06-17 | H47: 2055-09-07 | I47: 2055-10-12 | J47: 2055-11-02 | K47: 2055-11-15 | L47: 2055-12-25
A48: 2056-01-01 | B48: 2056-02-14 | C48: 2056-02-15 | D48: 2056-03-31 | E48: 2056-04-21 | F48: 2056-05-01 | G48: 2056-06-01 | H48: 2056-09-07 | I48: 2056-10-12 | J48: 2056-11-02 | K48: 2056-11-15 | L48: 2056-12-25
A49: 2057-01-01 | B49: 2057-03-05 | C49: 2057-03-06 | D49: 2057-04-20 | E49: 2057-04-21 | F49: 2057-05-01 | G49: 2057-06-21 | H49: 2057-09-07 | I49: 2057-10-12 | J49: 2057-11-02 | K49: 2057-11-15 | L49: 2057-12-25
A50: 2058-01-01 | B50: 2058-02-25 | C50: 2058-02-26 | D50: 2058-04-12 | E50: 2058-04-21 | F50: 2058-05-01 | G50: 2058-06-13 | H50: 2058-09-07 | I50: 2058-10-12 | J50: 2058-11-02 | K50: 2058-11-15 | L50: 2058-12-25
A51: 2059-01-01 | B51: 2059-02-10 | C51: 2059-02-11 | D51: 2059-03-28 | E51: 2059-04-21 | F51: 2059-05-01 | G51: 2059-05-29 | H51: 2059-09-07 | I51: 2059-10-12 | J51: 2059-11-02 | K51: 2059-11-15 | L51: 2059-12-25
A52: 2060-01-01 | B52: 2060-03-01 | C52: 2060-03-02 | D52: 2060-04-16 | E52: 2060-04-21 | F52: 2060-05-01 | G52: 2060-06-17 | H52: 2060-09-07 | I52: 2060-10-12 | J52: 2060-11-02 | K52: 2060-11-15 | L52: 2060-12-25
A53: 2061-01-01 | B53: 2061-02-21 | C53: 2061-02-22 | D53: 2061-04-08 | E53: 2061-04-21 | F53: 2061-05-01 | G53: 2061-06-09 | H53: 2061-09-07 | I53: 2061-10-12 | J53: 2061-11-02 | K53: 2061-11-15 | L53: 2061-12-25
A54: 2062-01-01 | B54: 2062-02-06 | C54: 2062-02-07 | D54: 2062-03-24 | E54: 2062-04-21 | F54: 2062-05-01 | G54: 2062-05-25 | H54: 2062-09-07 | I54: 2062-10-12 | J54: 2062-11-02 | K54: 2062-11-15 | L54: 2062-12-25
A55: 2063-01-01 | B55: 2063-02-26 | C55: 2063-02-27 | D55: 2063-04-13 | E55: 2063-04-21 | F55: 2063-05-01 | G55: 2063-06-14 | H55: 2063-09-07 | I55: 2063-10-12 | J55: 2063-11-02 | K55: 2063-11-15 | L55: 2063-12-25
A56: 2064-01-01 | B56: 2064-02-18 | C56: 2064-02-19 | D56: 2064-04-04 | E56: 2064-04-21 | F56: 2064-05-01 | G56: 2064-06-05 | H56: 2064-09-07 | I56: 2064-10-12 | J56: 2064-11-02 | K56: 2064-11-15 | L56: 2064-12-25
A57: 2065-01-01 | B57: 2065-02-09 | C57: 2065-02-10 | D57: 2065-03-27 | E57: 2065-04-21 | F57: 2065-05-01 | G57: 2065-05-28 | H57: 2065-09-07 | I57: 2065-10-12 | J57: 2065-11-02 | K57: 2065-11-15 | L57: 2065-12-25
A58: 2066-01-01 | B58: 2066-02-22 | C58: 2066-02-23 | D58: 2066-04-09 | E58: 2066-04-21 | F58: 2066-05-01 | G58: 2066-06-10 | H58: 2066-09-07 | I58: 2066-10-12 | J58: 2066-11-02 | K58: 2066-11-15 | L58: 2066-12-25
A59: 2067-01-01 | B59: 2067-02-14 | C59: 2067-02-15 | D59: 2067-04-01 | E59: 2067-04-21 | F59: 2067-05-01 | G59: 2067-06-02 | H59: 2067-09-07 | I59: 2067-10-12 | J59: 2067-11-02 | K59: 2067-11-15 | L59: 2067-12-25
A60: 2068-01-01 | B60: 2068-03-05 | C60: 2068-03-06 | D60: 2068-04-20 | E60: 2068-04-21 | F60: 2068-05-01 | G60: 2068-06-21 | H60: 2068-09-07 | I60: 2068-10-12 | J60: 2068-11-02 | K60: 2068-11-15 | L60: 2068-12-25
A61: 2069-01-01 | B61: 2069-02-25 | C61: 2069-02-26 | D61: 2069-04-12 | E61: 2069-04-21 | F61: 2069-05-01 | G61: 2069-06-13 | H61: 2069-09-07 | I61: 2069-10-12 | J61: 2069-11-02 | K61: 2069-11-15 | L61: 2069-12-25
A62: 2070-01-01 | B62: 2070-02-10 | C62: 2070-02-11 | D62: 2070-03-28 | E62: 2070-04-21 | F62: 2070-05-01 | G62: 2070-05-29 | H62: 2070-09-07 | I62: 2070-10-12 | J62: 2070-11-02 | K62: 2070-11-15 | L62: 2070-12-25
